bitfinex/quotes_ETHUSD_20250822
["timestamp","ask_amount","ask_price","bid_price","bid_amount"]
[1755882300578,4.4562,4776.9,4776.8,0.001]
[1755882300767,0.6822,4776.9,4776.8,0.001]
[1755882300954,4.4562,4776.9,4776.8,0.001]
[1755882301881,0.6822,4776.9,4776.8,0.001]
[1755882302179,4.4542,4776.9,4776.8,0.001]
[1755882302746,4.4542,4776.9,4776.8,0.021]
[1755882302980,4.4502,4776.9,4776.8,0.021]
[1755882303290,0.66,4776.8,4775.8,0.02]
[1755882303502,0.3024,4775.9,4775.8,0.02]
[1755882303663,5.8144,4775.9,4775.8,0.02]
[1755882304054,2.4293,4775.9,4775.8,0.02]
[1755882304294,6.3021,4775.9,4775.8,0.02]
[1755882304793,6.3041,4775.9,4775.8,0.02]
[1755882305148,2.1502,4775.9,4775.8,0.02]
[1755882305375,5.9202,4775.9,4775.8,0.02]
[1755882305547,0.1048,4775.9,4775.8,0.02]
[1755882305753,3.773,4776.8,4775.8,0.02]
[1755882305986,0.1048,4776.4,4775.8,0.4611]
[1755882306354,1.743,4777.2,4775.9,0.02093846]
[1755882306671,0.1048,4776.7,4776.0,0.1048]
[1755882306981,0.1048,4776.7,4775.8,0.4611]
[1755882306982,3.775,4776.6,4775.8,0.02]
[1755882307152,0.1048,4776.0,4775.8,0.02]
[1755882307354,0.2515,4775.9,4775.8,0.02]
[1755882307554,0.6859,4775.9,4775.8,0.02]
[1755882307749,0.2515,4775.9,4775.8,0.02]
[1755882307955,0.1048,4776.0,4775.8,0.02]
[1755882308357,3.774,4775.9,4775.8,0.02]
[1755882308568,3.7892,4775.9,4775.8,0.02]
[1755882308785,5.9569,4775.9,4775.8,0.02]
[1755882309663,19.23812052,4775.9,4775.8,0.02]
[1755882310481,15.46412052,4775.9,4775.8,0.02]
[1755882310681,19.24012052,4775.9,4775.8,0.02]
[1755882311868,22.89912052,4775.9,4775.8,0.02]
[1755882312266,18.46412052,4775.9,4775.8,0.02]
[1755882312467,22.23612052,4775.9,4775.8,0.02]
[1755882313192,5.5292,4775.9,4775.8,0.02]
[1755882313571,5.513,4775.9,4775.8,0.02]
[1755882313895,5.512,4775.9,4775.8,0.02]
[1755882314372,2.0017,4775.9,4775.8,0.02]
[1755882314691,5.513,4775.9,4775.8,0.02]
[1755882314890,5.7717,4775.9,4775.8,0.02]
[1755882315391,1.743,4775.9,4775.8,0.02]
[1755882315596,5.511,4775.9,4775.8,0.02]
[1755882315762,20.13812052,4775.9,4775.8,0.02]
[1755882316086,22.47812052,4775.9,4775.8,0.02]
[1755882316397,0.10946431,4777.0,4775.8,0.318]
[1755882316602,0.10946431,4777.0,4775.9,0.68093846]
[1755882316897,3.456,4778.1,4776.9,0.298]
[1755882317394,3.456,4778.1,4777.0,0.4694]
[1755882317804,1.746,4779.6,4777.7,0.298]
[1755882318105,1.746,4779.6,4777.7,0.48971141]
[1755882318106,3.794,4778.7,4777.7,0.48971141]
[1755882318396,3.793,4779.1,4777.7,0.95911141]
[1755882319293,0.1048,4779.1,4777.7,1.06391141]
[1755882319482,0.1048,4779.1,4777.7,1.17030255]
[1755882319483,3.793,4779.0,4777.7,1.17030255]
[1755882319667,3.791,4779.0,4777.7,1.17030255]
[1755882319865,0.1048,4779.1,4777.7,1.83030255]
[1755882320094,4.247,4779.6,4777.8,0.66]
[1755882320299,0.002,4779.6,4779.5,0.298]
[1755882320464,0.10938916,4781.8,4779.6,0.66]
[1755882320664,1.743,4783.1,4779.8,0.66]
[1755882320971,0.1048,4782.6,4781.9,0.1048]
[1755882321165,0.1048,4782.6,4782.0,0.66111141]
[1755882321498,0.1048,4782.6,4782.1,0.19171141]
[1755882321706,0.1048,4782.6,4782.2,0.66111141]
[1755882321914,0.1048,4783.1,4782.5,0.1048]
[1755882322069,0.02055247,4783.3,4782.6,0.19171141]
[1755882322269,0.02055247,4783.3,4782.7,0.19171141]
[1755882322575,0.3048,4782.8,4782.7,0.19171141]
[1755882322882,0.4289,4785.8,4782.7,17.11533193]
[1755882323092,120.07400162,4786.3,4782.8,4.34201966]
[1755882323271,120.07400162,4786.3,4783.0,3.66]
[1755882323600,120.07400162,4786.3,4782.9,2.56471141]
[1755882323601,120.07400162,4786.3,4783.2,3.66]
[1755882323814,120.07400162,4786.3,4783.4,0.66]
[1755882323967,120.07400162,4786.3,4783.5,0.2126166]
[1755882324315,120.07400162,4786.3,4783.6,0.19171141]
[1755882324604,0.4289,4784.9,4783.7,0.19171141]
[1755882324804,13.28122052,4784.5,4783.8,0.19171141]
[1755882324971,13.28122052,4783.9,4780.4,1.742]
[1755882325166,13.28122052,4783.2,4780.5,0.65849649]
[1755882325417,13.28122052,4782.4,4780.6,0.65849649]
[1755882325577,13.28122052,4780.7,4777.8,0.02]
[1755882325909,14.4819,4782.3,4778.5,0.628479]
[1755882325910,13.28122052,4779.8,4778.5,0.628479]
[1755882326081,5.636,4779.7,4778.6,0.02092663]
[1755882326423,3.93092985,4779.6,4777.1,0.628666]
[1755882326629,0.02092985,4779.6,4776.2,1.51252969]
[1755882326907,3.909,4779.5,4777.0,0.628662]
[1755882327074,0.02092985,4779.4,4776.3,0.15125297]
[1755882327467,3.907,4780.5,4776.4,16.21468626]
[1755882327673,0.02092985,4780.4,4776.6,3.66]
[1755882327870,0.02092985,4780.4,4776.4,0.6287]
[1755882327871,0.4289,4780.4,4776.4,0.6287]
[1755882328101,0.02092985,4780.3,4776.5,0.22924827]
[1755882328311,0.4289,4780.2,4776.6,0.4694]
[1755882328466,0.4289,4780.2,4776.7,0.02093495]
[1755882328671,0.66,4779.9,4776.8,0.4694]
[1755882328902,12.48393233,4779.7,4776.8,0.4694]
[1755882329108,1.76292985,4779.6,4776.8,0.4694]
[1755882329310,3.909,4779.5,4776.9,0.02093407]
[1755882329606,13.14393233,4781.1,4776.9,0.02093407]
[1755882329607,1.742,4782.2,4779.5,26.07579]
[1755882329812,1.87174884,4784.2,4779.6,42.76732225]
[1755882329973,1.87174884,4784.2,4780.1,3.66]
[1755882329974,0.002,4780.7,4780.1,3.66]
[1755882330175,0.4289,4784.5,4780.3,3.66]
[1755882330404,0.02092985,4784.4,4780.5,3.66]
[1755882330587,0.4289,4784.3,4780.7,0.66]
[1755882330790,0.02092985,4784.2,4780.8,0.020917]
[1755882331096,6.0859,4784.1,4780.9,0.13594826]
[1755882331294,3.44982985,4784.0,4780.9,0.1150317]
[1755882331484,12.48393233,4783.3,4779.8,3.0]
[1755882331686,5.657,4784.1,4779.9,0.49032093]
[1755882331687,0.4289,4783.5,4779.9,0.49032093]
[1755882332010,0.4289,4783.5,4780.1,3.66]
[1755882332318,12.48393233,4782.4,4779.0,0.4694]
[1755882332519,2.1709,4782.3,4779.1,0.02092444]
[1755882332743,6.11582985,4782.3,4779.2,0.76773244]
[1755882332885,0.1048,4780.7,4779.2,0.76773244]
[1755882333075,0.1048,4780.7,4778.9,1.742]
[1755882333076,0.1048,4780.2,4779.5,0.1048]
[1755882333281,0.1048,4779.7,4779.0,0.1048]
[1755882333476,0.02092985,4779.6,4779.0,0.1048]
[1755882333801,0.4289,4779.5,4777.9,0.1048]
[1755882334110,0.1048,4778.3,4777.6,0.1048]
[1755882334585,0.44982985,4778.2,4777.6,0.1048]
[1755882334796,2.1709,4778.1,4777.6,0.1048]
[1755882335181,0.4289,4778.0,4777.6,0.1048]
[1755882335396,1.742,4778.1,4775.8,0.021]
[1755882335705,0.4289,4777.9,4775.8,0.021]
[1755882335906,1.742,4778.1,4776.2,0.4694]
[1755882336110,0.02092985,4778.0,4776.2,0.4694]
[1755882336410,1.742,4779.5,4777.1,0.66]
[1755882336609,0.02092985,4779.4,4776.7,1.742]
[1755882336907,0.4289,4779.3,4776.7,1.742]
[1755882337112,0.02092985,4779.2,4776.8,0.02093451]
[1755882337272,0.02092985,4779.2,4776.7,1.742]
[1755882337808,0.02092985,4779.2,4776.8,0.02093451]
[1755882338105,0.4289,4779.3,4777.0,0.66]
[1755882338406,0.02092985,4779.2,4777.1,0.4397]
[1755882338794,12.48393233,4778.9,4776.9,0.22323345]
[1755882339004,0.66,4778.6,4775.8,0.021]
[1755882339206,0.66,4778.4,4775.8,0.021]
[1755882339409,0.47522985,4778.3,4775.8,0.021]
[1755882339607,12.48393233,4776.7,4775.8,0.021]
[1755882339788,6.15522985,4776.6,4775.8,0.021]
[1755882339991,6.1343,4776.6,4775.8,0.021]
[1755882340189,0.47522985,4776.5,4775.8,0.021]
[1755882340394,0.66,4776.4,4775.4,0.001]
[1755882340592,0.02092985,4776.3,4775.4,0.001]
[1755882340817,0.47522985,4776.3,4775.4,0.001]
[1755882341018,0.4543,4776.3,4775.4,0.001]
[1755882341188,3.95692985,4776.2,4775.4,0.001]
[1755882341393,3.938,4776.1,4775.4,0.001]
[1755882341594,0.10941686,4780.0,4776.1,30.0]
[1755882341794,0.10941686,4780.0,4776.8,3.66]
[1755882342005,0.10941686,4780.0,4777.0,3.66]
[1755882342201,0.53816,4781.2,4776.9,29.69880907]
[1755882342202,0.4543,4781.2,4777.2,3.66]
[1755882342425,0.4543,4781.2,4777.4,3.66]
[1755882342599,1.879,4781.6,4777.7,0.66]
[1755882342794,1.879,4781.6,4777.9,3.66]
[1755882342999,1.879,4781.6,4778.0,0.4397]
[1755882343207,0.4543,4781.5,4778.0,0.4397]
[1755882343705,3.0,4780.9,4777.1,0.4397]
[1755882343904,0.66,4780.6,4777.1,0.4397]
[1755882344104,0.66,4780.4,4777.2,0.1901869]
[1755882344418,0.4543,4780.3,4777.3,0.1901869]
[1755882344725,3.99,4780.2,4777.4,0.1901869]
[1755882345026,0.4543,4780.3,4777.1,0.4397]
[1755882345327,0.1048,4778.9,4778.2,0.1048]
[1755882345630,3.986,4780.2,4778.3,0.1905129]
[1755882345631,1.742,4779.1,4778.3,0.1905129]
[1755882345829,1.742,4779.1,4778.4,0.1905129]
[1755882346026,0.1048,4778.9,4778.5,0.1905129]
[1755882346196,0.1048,4778.9,4778.6,0.1905129]
[1755882346396,0.1048,4778.9,4778.7,0.1905129]
[1755882346623,0.1048,4778.9,4778.8,0.1905129]
[1755882346824,0.1048,4778.9,4778.3,0.1905129]
[1755882347028,0.4543,4780.1,4778.4,0.1905129]
[1755882347225,0.1048,4779.2,4778.8,0.02]
[1755882347431,0.02,4779.8,4778.8,0.02]
[1755882347598,0.1048,4778.9,4778.8,0.02]
[1755882347803,4.5441,4778.9,4778.8,0.02]
[1755882347995,0.1048,4778.9,4778.8,0.02]
[1755882348625,0.5591,4778.9,4778.8,0.02]
[1755882349325,0.54959541,4778.9,4778.8,0.02]
[1755882350900,4.0798,4778.9,4778.8,0.02]
[1755882351642,0.02,4779.8,4778.8,0.02]
[1755882351847,0.1048,4779.6,4778.9,0.02092531]
[1755882352001,0.1048,4779.6,4779.0,0.1048]
[1755882353106,0.02,4779.8,4779.5,0.1048]
[1755882353319,0.02,4779.8,4779.6,0.02092225]
[1755882353530,0.02,4779.8,4779.5,0.1048]
[1755882354046,0.02,4779.8,4779.6,0.02092225]
[1755882354747,0.02,4779.8,4779.5,0.1048]
[1755882356361,0.02,4779.8,4779.7,0.1048]
[1755882356658,0.02,4779.8,4779.7,0.5445]
[1755882357022,0.02,4779.8,4779.7,0.1048]
[1755882357354,0.02,4779.8,4779.7,0.56542181]
[1755882357556,0.02,4779.8,4779.7,0.5445]
[1755882358715,0.02,4779.8,4779.7,1.22542181]
[1755882359158,0.02,4779.8,4779.7,1.34796399]
[1755882359342,0.02,4779.8,4779.7,0.22734218]
[1755882359518,0.02,4779.8,4779.7,0.12572181]
[1755882359843,0.02,4779.8,4779.7,0.5445]
[1755882361313,0.02,4779.8,4779.7,0.1048]
[1755882363663,0.02,4779.8,4779.4,0.1048]
[1755882364465,0.02,4779.8,4779.7,0.1048]
[1755882364752,0.022,4779.8,4779.7,0.1048]
[1755882364947,0.4763,4779.8,4778.4,3.0]
[1755882365152,0.022,4779.8,4779.5,0.1048]
[1755882365356,0.022,4779.8,4779.6,0.02092225]
[1755882365527,0.022,4779.8,4779.7,0.1048]
[1755882366339,0.022,4779.8,4778.8,0.02]
[1755882366537,0.4543,4779.7,4778.8,0.02]
[1755882366771,0.022,4779.8,4778.8,0.02]
[1755882366934,0.022,4779.8,4778.9,0.02092531]
[1755882367270,0.022,4779.8,4779.1,0.66]
[1755882367635,0.022,4779.8,4779.2,0.020924]
[1755882367836,0.022,4779.8,4779.0,0.22226253]
[1755882369023,1.742,4780.3,4778.8,0.02]
[1755882370844,12.48393233,4779.8,4778.0,0.001]
[1755882371125,0.66,4779.7,4778.0,0.001]
[1755882371351,3.949,4779.6,4778.0,0.001]
[1755882371556,3.947,4779.5,4778.0,0.001]
[1755882371723,4.4113,4779.5,4778.0,0.001]
[1755882371921,0.4643,4779.5,4778.0,0.001]
[1755882372549,0.4643,4779.5,4778.0,0.02192925]
[1755882372859,0.4643,4779.5,4778.1,0.02092882]
[1755882373355,0.4643,4780.2,4778.1,0.02092882]
[1755882373855,0.4643,4780.2,4778.1,0.15977932]
[1755882374062,0.4643,4780.2,4778.0,0.001]
[1755882374362,3.66,4779.8,4778.0,0.001]
[1755882374529,3.66,4779.6,4778.0,0.001]
[1755882375159,0.4643,4779.5,4778.0,0.001]
[1755882375561,3.66,4778.6,4777.1,0.001]
[1755882375759,12.48393233,4777.5,4777.1,0.001]
[1755882375959,3.945,4777.4,4775.8,0.02]
[1755882376163,4.4093,4777.4,4775.8,0.02]
[1755882376347,4.4083,4777.3,4775.8,0.02]
[1755882376729,0.1048,4777.1,4775.8,0.02]
[1755882376935,0.1048,4776.2,4775.8,0.02]
[1755882377331,3.943,4777.5,4775.8,0.02]
[1755882377332,0.4643,4776.1,4775.8,0.02]
[1755882377537,0.1048,4775.9,4775.8,0.02]
[1755882378840,0.4643,4776.5,4775.8,0.02]
[1755882379053,1.742,4777.1,4775.8,0.02]
[1755882379054,0.1048,4776.1,4775.8,0.02]
[1755882380838,0.1048,4776.8,4776.0,0.1048]
[1755882381466,12.48393233,4776.1,4775.8,0.02]
[1755882381858,0.4643,4776.0,4775.8,0.02]
[1755882382256,0.4643,4776.0,4775.4,0.001]
[1755882382862,0.4643,4776.0,4775.8,0.001]
[1755882383264,0.66,4775.9,4774.9,0.001]
[1755882383571,0.66,4774.9,4772.8,0.021]
[1755882383773,0.66,4773.8,4772.8,0.021]
[1755882384070,3.66,4773.6,4772.8,0.021]
[1755882384273,3.0,4773.6,4772.8,0.021]
[1755882384579,0.4643,4773.5,4772.8,0.021]
[1755882385079,0.66,4773.4,4772.8,0.021]
[1755882385290,13.14393233,4772.9,4772.8,0.021]
[1755882385443,13.14393233,4772.9,4771.1,0.001]
[1755882385444,3.66,4772.8,4771.1,0.001]
[1755882385641,3.66,4772.8,4770.6,0.001]
[1755882385642,0.66,4771.1,4770.6,0.001]
[1755882385872,1.743,4771.0,4770.6,0.001]
[1755882386075,5.731,4771.0,4770.6,0.001]
[1755882386386,0.4643,4771.8,4770.6,0.001]
[1755882386540,5.448,4772.7,4770.6,0.001]
[1755882386541,1.1243,4770.9,4770.6,0.001]
[1755882386741,1.1243,4770.9,4769.8,0.02]
[1755882386742,5.428,4770.8,4769.8,0.02]
[1755882386971,0.66,4770.3,4769.8,0.02]
[1755882387281,12.48393233,4770.4,4769.8,0.02]
[1755882387439,3.997,4770.4,4769.8,0.02]
[1755882387640,0.4643,4770.2,4769.8,0.02]
[1755882388375,1.1243,4770.2,4769.8,0.02]
[1755882388787,0.4643,4770.2,4769.8,0.02]
[1755882389078,4.008,4770.5,4769.8,0.02]
[1755882389242,1.743,4770.7,4769.8,0.02]
[1755882391280,1.743,4770.7,4769.9,0.4501]
[1755882391463,0.1048,4770.5,4769.9,0.4501]
[1755882391697,1.744,4771.9,4770.0,0.02096436]
[1755882391911,0.1048,4771.0,4770.3,0.1048]
[1755882392106,4.01,4771.8,4769.8,0.02]
[1755882392107,0.1048,4771.3,4770.7,0.1048]
[1755882393176,4.01,4771.8,4770.8,0.4501]
[1755882393371,4.1148,4771.8,4771.2,0.1048]
[1755882393703,4.006,4772.4,4771.3,0.47105864]
[1755882393908,0.1048,4772.1,4771.5,0.1048]
[1755882394714,0.1048,4772.1,4769.8,0.02]
[1755882394715,1.9043,4772.0,4769.8,0.02]
[1755882394894,0.1048,4770.2,4769.8,0.02]
[1755882395086,5.8638,4770.2,4769.8,0.02]
[1755882395294,6.3281,4770.2,4769.8,0.02]
[1755882395616,5.8638,4770.2,4769.8,0.02]
[1755882396398,1.8498,4770.2,4769.8,0.02]
[1755882397518,0.1048,4770.2,4769.8,0.02]
[1755882399808,0.5388,4770.2,4769.8,0.02]
[1755882401105,0.1048,4770.2,4769.8,0.02]
[1755882402129,0.5388,4770.2,4769.8,0.02]
[1755882402531,1.1988,4770.2,4769.8,0.02]
[1755882402892,3.66,4770.1,4768.8,0.021]
[1755882403018,0.66,4769.9,4768.8,0.021]
[1755882403195,0.1048,4769.2,4768.8,0.021]
[1755882403396,4.1128,4769.2,4768.8,0.021]
[1755882403616,1.745,4770.0,4768.8,0.021]
[1755882403617,4.006,4769.4,4769.1,0.47276621]
[1755882404017,4.006,4769.4,4769.1,6.621e-05]
[1755882404797,4.006,4769.4,4769.2,0.4727]
[1755882405006,4.006,4769.4,4769.1,6.621e-05]
[1755882405229,4.006,4769.4,4768.8,0.01959378]
[1755882405528,4.006,4769.4,4769.1,0.4727]
[1755882405730,4.006,4769.4,4769.2,0.4727]
[1755882405929,4.006,4769.4,4768.8,0.01959378]
[1755882406238,4.006,4769.4,4769.3,0.4727]
[1755882407247,4.006,4769.4,4768.8,0.01959378]
[1755882407539,4.44,4769.4,4768.8,0.01959378]
[1755882407698,4.006,4769.4,4768.8,0.01959378]
[1755882408101,0.66,4769.3,4768.8,0.01959378]
[1755882408302,0.32826741,4771.1,4768.8,0.01959378]
[1755882408506,0.436,4770.6,4768.8,0.01959378]
[1755882408723,4.022,4770.5,4768.8,0.01959378]
[1755882408933,4.022,4770.5,4768.9,0.4727]
[1755882409337,0.1095851,4770.4,4768.9,0.4727]
[1755882409538,0.1095851,4770.4,4768.8,0.01959378]
[1755882409834,3.1095851,4770.4,4768.8,0.01959378]
[1755882410514,12.48393233,4770.2,4768.8,0.01959378]
[1755882410754,0.1095851,4770.4,4768.8,0.01959378]
[1755882411047,4.018,4770.1,4768.8,0.01959378]
[1755882412911,4.014,4770.0,4768.8,0.49229378]
[1755882413344,4.014,4770.0,4768.8,0.01959378]
[1755882413517,0.1048,4769.3,4768.8,0.01959378]
[1755882414114,4.1138,4769.3,4768.8,0.01959378]
[1755882415051,0.1048,4768.9,4768.8,0.01959378]
[1755882415644,0.434,4768.9,4768.8,0.01959378]
[1755882416720,1.746,4769.0,4768.8,0.01959378]
[1755882417434,0.434,4768.9,4768.8,0.01959378]
[1755882417961,1.746,4769.0,4768.8,0.01959378]
[1755882420239,0.002,4769.4,4768.8,0.01959378]
[1755882420240,0.002,4769.4,4768.9,0.4727]
[1755882420448,0.002,4769.4,4769.0,0.66]
[1755882420646,0.002,4769.4,4769.1,0.19354163]
[1755882420862,0.002,4770.4,4769.2,0.19354163]
[1755882421079,3.998,4770.2,4769.3,0.19354163]
[1755882421258,3.998,4770.2,4769.4,0.19354163]
[1755882421568,3.998,4770.2,4769.5,0.19354163]
[1755882421868,3.998,4770.2,4768.8,0.01959378]
[1755882421869,3.998,4770.2,4769.6,0.19354163]
[1755882422033,3.998,4770.2,4769.7,0.19354163]
[1755882422234,3.996,4770.1,4769.8,0.19354163]
[1755882422465,3.996,4770.1,4769.9,0.19354163]
[1755882422664,3.996,4770.1,4768.8,0.01959378]
[1755882423361,3.996,4770.1,4768.9,0.49366919]
[1755882423567,3.996,4770.1,4768.9,0.4727]
[1755882423762,3.996,4770.1,4768.8,0.01959378]
[1755882424681,13.31249784,4770.0,4768.8,0.01959378]
[1755882424883,3.0,4769.9,4768.8,0.01959378]
[1755882425672,0.1048,4768.9,4768.8,0.01959378]
[1755882425973,4.0948,4768.9,4768.8,0.01959378]
[1755882426681,3.987,4769.2,4768.8,0.01959378]
[1755882426844,3.987,4769.2,4768.8,0.49229378]
[1755882427046,0.002,4770.4,4769.1,0.1048]
[1755882427047,0.1048,4769.8,4769.1,0.1048]
[1755882427345,0.002,4770.4,4768.8,0.01959378]
[1755882427346,3.989,4770.2,4768.8,0.01959378]
[1755882427550,3.989,4770.2,4768.9,0.58792938]
[1755882427761,3.989,4770.2,4769.0,0.66]
[1755882427963,3.993,4770.4,4769.0,0.68096875]
[1755882428585,0.002,4770.4,4769.2,0.66]
[1755882428757,0.002,4770.4,4769.4,0.66]
[1755882428949,0.002,4770.4,4769.6,0.66]
[1755882429345,0.002,4770.4,4769.8,0.66]
[1755882430269,0.002,4770.4,4770.0,0.66]
[1755882430475,0.002,4770.4,4770.1,0.02096392]
[1755882430789,0.002,4770.4,4770.2,0.66]
[1755882430975,3.986,4772.2,4770.4,0.66]
[1755882431171,3.986,4772.2,4770.5,0.02096216]
[1755882431490,3.986,4772.2,4770.7,0.66]
[1755882431690,3.986,4772.2,4770.8,0.02096084]
[1755882431989,3.986,4772.2,4770.3,0.24111652]
[1755882432157,3.986,4772.2,4768.5,5.456]
[1755882432158,3.986,4772.2,4770.1,0.66]
[1755882432353,1.766,4771.8,4770.1,0.66]
[1755882432875,1.766,4771.8,4770.0,0.4557]
[1755882433095,0.447,4771.7,4769.3,2.2017]
[1755882433471,0.447,4771.7,4769.4,0.66]
[1755882433677,0.447,4771.7,4769.6,0.66]
[1755882433977,0.447,4771.7,4769.5,0.28617]
[1755882434173,13.31249784,4771.6,4768.8,0.01959378]
[1755882434602,0.447,4771.5,4769.3,0.001]
[1755882435383,0.447,4771.5,4769.3,0.02196743]
[1755882435586,0.447,4771.5,4769.3,0.001]
[1755882435890,3.97,4771.4,4769.3,0.001]
[1755882436283,0.447,4771.5,4769.3,0.02196743]
[1755882436583,0.02,4771.8,4769.5,0.66]
[1755882436794,3.988,4771.8,4769.7,0.66]
[1755882437308,0.1048,4771.4,4770.6,0.66]
[1755882437489,3.988,4771.8,4770.9,0.66]
[1755882437684,3.988,4771.8,4771.2,0.1048]
[1755882438000,0.02,4771.8,4771.3,0.66]
[1755882438182,0.02,4771.8,4771.7,0.7648]
[1755882438507,0.02,4771.8,4771.7,0.6518395]
[1755882438710,0.02,4771.8,4771.7,0.1048]
[1755882439009,0.02,4771.8,4771.7,0.5605]
[1755882439177,0.02,4771.8,4771.0,0.11157]
[1755882439508,0.02,4771.8,4771.1,0.02095952]
[1755882439906,0.02,4771.8,4770.2,1.11465914]
[1755882440107,0.02,4771.8,4770.4,0.4557]
[1755882440410,0.02,4771.8,4770.5,0.66]
[1755882440794,0.02,4771.8,4770.4,0.4557]
[1755882441106,0.02,4771.8,4769.9,1.11465914]
[1755882441308,0.02,4771.8,4769.8,0.4757]
[1755882441515,0.02,4771.8,4769.9,0.66]
[1755882442310,1.745,4771.7,4769.8,0.4757]
[1755882442513,1.745,4771.7,4769.9,0.45903591]
[1755882443007,3.967,4771.6,4770.0,0.47666436]
[1755882443209,3.967,4771.6,4770.1,0.66]
[1755882444092,3.967,4771.6,4770.2,0.02096348]
[1755882444481,3.967,4771.6,4770.1,0.66]
[1755882444681,3.967,4771.6,4770.2,0.13453348]
[1755882445113,1.745,4771.7,4770.3,1.1157]
[1755882445290,1.745,4771.7,4770.4,0.0209626]
[1755882445788,1.745,4771.7,4770.3,1.1157]
[1755882446289,1.745,4771.7,4770.8,0.02]
[1755882447190,1.745,4771.7,4770.9,0.0209604]
[1755882447825,1.745,4771.7,4770.9,0.6809604]
[1755882448008,0.02,4771.8,4771.1,0.66]
[1755882448925,0.02,4771.8,4771.3,0.66]
[1755882449091,0.02,4771.8,4771.1,0.66]
[1755882449291,0.02,4771.8,4771.6,0.1048]
[1755882449817,0.02,4771.8,4771.7,0.02095689]
[1755882450121,0.02,4771.8,4771.0,0.11566604]
[1755882450420,0.1048,4771.7,4770.9,0.1048]
[1755882452122,0.1048,4771.7,4771.0,0.02095996]
[1755882452691,0.1048,4771.7,4770.9,0.1048]
[1755882452896,0.1048,4771.7,4771.0,0.02095996]
[1755882453100,0.02,4771.8,4771.6,0.1048]
[1755882453398,0.2984,4771.7,4770.8,0.68]
[1755882453598,0.2984,4771.7,4771.1,0.1048]
[1755882454450,0.02,4771.8,4771.1,0.1048]
[1755882454645,0.02,4771.8,4771.2,0.02095908]
[1755882455434,0.02,4771.8,4771.4,0.1048]
[1755882455653,0.02,4771.8,4771.7,0.409]
[1755882455955,0.02,4771.8,4771.7,0.1048]
[1755882456642,0.02,4771.8,4771.1,1.11465914]
[1755882456829,0.02,4771.8,4771.4,0.1048]
[1755882457235,0.2984,4771.5,4770.8,0.02]
[1755882457439,0.2984,4771.5,4769.9,1.48478523]
[1755882457440,0.1048,4770.9,4770.1,0.1048]
[1755882457970,1.745,4771.6,4770.2,0.02096348]
[1755882458111,1.745,4771.6,4770.1,1.11465914]
[1755882458313,0.1048,4770.9,4770.2,0.12576348]
[1755882458612,0.1048,4771.2,4770.5,0.1048]
[1755882458813,0.1048,4771.2,4770.6,0.02096172]
[1755882459209,0.1048,4771.2,4770.6,0.68096172]
[1755882459415,1.745,4771.6,4770.6,1.14316172]
[1755882459716,1.8498,4771.6,4771.0,0.1048]
[1755882459914,1.8498,4771.6,4771.1,0.02095952]
[1755882460315,0.1048,4771.6,4771.1,0.48315952]
[1755882460535,0.1248,4771.8,4771.2,0.4622]
[1755882460855,0.1248,4771.8,4771.3,0.02095864]
[1755882461015,0.1248,4771.8,4771.4,0.0209582]
[1755882461215,0.1248,4771.8,4771.1,0.02095952]
[1755882461422,0.1248,4771.8,4771.1,0.14662008]
[1755882461624,0.1248,4771.8,4770.6,0.66]
[1755882461625,0.1634,4771.7,4770.3,1.11465914]
[1755882461841,0.1048,4771.1,4770.2,1.11465914]
[1755882462147,0.1048,4770.7,4770.0,0.1048]
[1755882462515,0.1048,4771.2,4770.5,0.1048]
[1755882462728,0.1048,4771.2,4770.6,0.02096172]
[1755882463024,0.1048,4771.7,4771.0,0.1048]
[1755882463817,0.02,4771.8,4771.3,0.1048]
[1755882464019,0.02,4771.8,4770.6,1.11465914]
[1755882464020,0.449,4771.7,4770.6,1.11465914]
[1755882464249,0.1048,4771.4,4770.7,0.1048]
[1755882464748,0.1048,4771.4,4770.8,0.02096084]
[1755882465424,0.1048,4771.4,4770.7,0.1048]
[1755882465825,0.1048,4771.4,4770.8,0.02096084]
[1755882466251,0.1048,4771.4,4770.7,0.1048]
[1755882466252,0.3125,4770.9,4770.7,0.1048]
[1755882466550,4.361,4770.8,4769.7,1.11465914]
[1755882466772,0.1048,4770.5,4769.7,1.11465914]
[1755882467139,0.1048,4770.5,4769.8,0.04096523]
[1755882468032,0.1048,4770.5,4769.8,1.15562437]
[1755882468232,0.449,4770.4,4769.8,0.02]
[1755882468935,3.906,4770.3,4769.8,0.02]
[1755882469134,3.906,4770.2,4769.8,0.02]
[1755882469932,3.906,4770.2,4769.8,0.4822]
[1755882470129,3.906,4770.2,4769.9,0.0209648]
[1755882470357,3.906,4770.2,4770.0,0.62398239]
[1755882470583,5.65,4771.3,4770.1,1.1222]
[1755882470786,5.65,4771.3,4770.1,0.66]
[1755882470997,5.65,4771.3,4770.0,0.16178239]
[1755882471458,5.65,4771.3,4769.8,0.04096523]
[1755882471660,0.449,4771.2,4769.8,0.02]